[Event "12th Arad Open 2019"]
[Site "Arad"]
[Date "2019.07.28"]
[Round "6.3"]
[White "Ciorgovean, Iustin"]
[Black "Gorodetzky, David"]
[Result "0-1"]
[ECO "A06"]
[WhiteElo "2330"]
[BlackElo "2461"]
[Annotator "ChessBase"]
[PlyCount "84"]
[EventDate "2019.07.24"]
[EventType "swiss"]
[EventCountry "ROU"]
[SourceTitle "playchess.com"]
[Source "ChessBase"]
[SourceQuality "1"]
[TimeControl "40/5400+30:900+30"]

1. Nf3 {[%emt 0:00:00]} d5 {[%emt 0:00:00]} 2. g3 {[%emt 0:01:09]} Nf6 {[%emt 0:01:07]} 3. Bg2 {[%emt 0:00:04]} e6 {[%emt 0:00:38]} 4. O-O {[%emt 0:00:45]} c5 {[%emt 0:00:55]} 5. c4 {[%emt 0:00:32]} d4 {[%emt 0:01:32]} 6. e3 {[%emt 0:01:10]} Nc6 {[%emt 0:01:32]} 7. exd4 {[%emt 0:00:08]} cxd4 {[%emt 0:00:10]} 8. d3 {[%emt 0:00:15]} Be7 {[%emt 0:07:23]} 9. Na3 {[%emt 0:10:46]} O-O {[%emt 0:05:47]} 10. Nc2 {[%emt 0:02:09]} a5 {[%emt 0:09:49]} 11. Re1 {[%emt 0:04:09]} Bd6 {[%emt 0:02:56]} 12. a3 {[%emt 0:08:58]} e5 {[%emt 0:00:41]} 13. Bg5 {[%emt 0:06:31]} h6 {[%emt 0:01:42]} 14. Bxf6 {[%emt 0:00:05]} Qxf6 {[%emt 0:00:04]} 15. Nd2 {[%emt 0:06:17]} Qd8 {[%emt 0:04:29]} 16. Rb1 {[%emt 0:03:57]} a4 {[%emt 0:02:59]} 17. b4 {[%emt 0:04:06]} axb3 {[%emt 0:00:07]} 18. Rxb3 {[%emt 0:00:40]} Ra7 {[%emt 0:02:57]} 19. Nb4 {[%emt 0:07:30]} Bd7 {[%emt 0:05:29]} 20. Qb1 {[%emt 0:06:53]} Re8 {[%emt 0:06:47]} 21. Nd5 {[%emt 0:11:42]} Na5 {[%emt 0:03:45]} 22. Rb2 {[%emt 0:00:12]} Bxa3 {[%emt 0:10:02]} 23. Ra2 {[%emt 0:00:08]} Bf8 {[%emt 0:05:43]} 24. Qb6 {[%emt 0:02:56]} Qxb6 {[%emt 0:03:32]} 25. Nxb6 {[%emt 0:00:24]} Bc6 {[%emt 0:03:57]} 26. Rb1 {[%emt 0:01:35]} Ra6 {[%emt 0:04:23]} 27. Raa1 {[%emt 0:01:27]} Bxg2 {[%emt 0:01:23]} 28. Kxg2 {[%emt 0:00:04]} Nc6 {[%emt 0:00:10]} 29. Nd5 {[%emt 0:04:53]} Rxa1 {[%emt 0:01:47]} 30. Rxa1 {[%emt 0:00:03]} Nb4 {[%emt 0:00:04]} 31. Nxb4 {[%emt 0:00:41]} Bxb4 {[%emt 0:00:02]} 32. Nf3 {[%emt 0:01:43]} Bc3 {[%emt 0:00:34]} 33. Rb1 {[%emt 0:00:31]} f5 {[%emt 0:00:17]} 34. Rxb7 {[%emt 0:08:08]} e4 {[%emt 0:00:14]} 35. dxe4 {[%emt 0:00:17]} fxe4 {[%emt 0:00:03]} 36. Ng1 {[%emt 0:00:39]} d3 {[%emt 0:06:55]} 37. Rd7 {[%emt 0:00:46]} d2 {[%emt 0:00:40]} 38. Ne2 {[%emt 0:02:43]} Ba5 {[%emt 0:00:01]} 39. f3 {[%emt 0:01:20]} Rb8 {[%emt 0:00:52]} 40. c5 {[%emt 0:00:00]} Rb1 {[%emt 0:00:00]} 41. Nc3 {[%emt 0:02:38]} exf3+ {[%emt 0:01:51]} 42. Kh3 {[%emt 0:01:37]} f2 {[%emt 0:00:09]} 0-1

[Event "12th Arad Open 2019"]
[Site "Arad"]
[Date "2019.07.28"]
[Round "6.4"]
[White "Jianu, Vlad-Cristian"]
[Black "Ileana, George"]
[Result "1-0"]
[ECO "A15"]
[WhiteElo "2523"]
[BlackElo "2344"]
[Annotator "ChessBase"]
[PlyCount "69"]
[EventDate "2019.07.24"]
[EventType "swiss"]
[EventCountry "ROU"]
[SourceTitle "playchess.com"]
[Source "ChessBase"]
[SourceQuality "1"]
[TimeControl "40/5400+30:900+30"]

1. c4 {[%emt 0:00:00]} Nf6 {[%emt 0:00:00]} 2. Nf3 {[%emt 0:00:00]} e6 {[%emt 0:00:08]} 3. g3 {[%emt 0:00:30]} b6 {[%emt 0:02:05]} 4. Bg2 {[%emt 0:00:11]} Bb7 {[%emt 0:00:03]} 5. O-O {[%emt 0:00:11]} Be7 {[%emt 0:00:12]} 6. Nc3 {[%emt 0:00:33]} O-O {[%emt 0:00:32]} 7. Re1 {[%emt 0:01:30]} d6 {[%emt 0:00:23]} 8. e4 {[%emt 0:00:51]} e5 {[%emt 0:01:24]} 9. d4 {[%emt 0:00:07]} Nbd7 {[%emt 0:00:09]} 10. b3 {[%emt 0:03:28]} Re8 {[%emt 0:01:20]} 11. Bb2 {[%emt 0:00:25]} c6 {[%emt 0:00:17]} 12. Qc2 {[%emt 0:04:36]} Qc7 {[%emt 0:00:12]} 13. Rad1 {[%emt 0:04:07]} a6 {[%emt 0:01:01]} 14. c5 {[%emt 0:07:08]} dxc5 {[%emt 0:05:44]} 15. dxe5 {[%emt 0:01:06]} Ng4 {[%emt 0:01:07]} 16. Na4 {[%emt 0:01:44]} b5 {[%emt 0:03:50]} 17. Rxd7 {[%emt 0:03:52]} Qxd7 {[%emt 0:00:03]} 18. Nb6 {[%emt 0:00:07]} Qc7 {[%emt 0:02:51]} 19. Nxa8 {[%emt 0:00:08]} Rxa8 {[%emt 0:00:04]} 20. h3 {[%emt 0:06:02]} Nh6 {[%emt 0:00:07]} 21. Ba3 {[%emt 0:03:35]} c4 {[%emt 0:02:46]} 22. Bxe7 {[%emt 0:00:17]} Qxe7 {[%emt 0:00:03]} 23. bxc4 {[%emt 0:00:07]} Qc5 {[%emt 0:00:25]} 24. Rd1 {[%emt 0:06:21]} Re8 {[%emt 0:00:52]} 25. Qd2 {[%emt 0:04:36]} Bc8 {[%emt 0:02:26]} 26. cxb5 {[%emt 0:00:25]} cxb5 {[%emt 0:00:18]} 27. Rc1 {[%emt 0:01:38]} Qe7 {[%emt 0:04:05]} 28. g4 {[%emt 0:02:06]} Kh8 {[%emt 0:00:43]} 29. Qd6 {[%emt 0:07:38]} Ng8 {[%emt 0:07:20]} 30. Rc7 {[%emt 0:05:29]} Qf8 {[%emt 0:01:48]} 31. Qxf8 {[%emt 0:14:00]} Rxf8 {[%emt 0:00:09]} 32. Ng5 {[%emt 0:00:12]} Nh6 {[%emt 0:02:06]} 33. f4 {[%emt 0:01:38]} f6 {[%emt 0:06:18]} 34. exf6 {[%emt 0:00:42]} gxf6 {[%emt 0:00:07]} 35. Nxh7 {[%emt 0:00:49]} 1-0

[Event "12th Arad Open 2019"]
[Site "Arad"]
[Date "2019.07.28"]
[Round "6.5"]
[White "Schitco, Ivan"]
[Black "Bonte, Andrei-Mihai"]
[Result "1/2-1/2"]
[ECO "A18"]
[WhiteElo "2462"]
[BlackElo "2337"]
[Annotator "ChessBase"]
[PlyCount "45"]
[EventDate "2019.07.24"]
[EventType "swiss"]
[EventCountry "ROU"]
[SourceTitle "playchess.com"]
[Source "ChessBase"]
[SourceQuality "1"]
[TimeControl "40/5400+30:900+30"]

1. c4 {[%emt 0:00:00]} Nf6 {[%emt 0:02:37]} 2. Nc3 {[%emt 0:00:33]} e6 {[%emt 0:02:04]} 3. e4 {[%emt 0:00:57]} d5 {[%emt 0:01:30]} 4. cxd5 {[%emt 0:00:44]} exd5 {[%emt 0:00:06]} 5. e5 {[%emt 0:00:03]} d4 {[%emt 0:07:41]} 6. exf6 {[%emt 0:01:02]} dxc3 {[%emt 0:00:07]} 7. Bb5+ {[%emt 0:01:30]} Nc6 {[%emt 0:02:50]} 8. Qe2+ {[%emt 0:11:37]} Be6 {[%emt 0:00:18]} 9. dxc3 {[%emt 0:07:21]} Qxf6 {[%emt 0:01:14]} 10. Nf3 {[%emt 0:07:33]} Bc5 {[%emt 0:01:23]} 11. Ng5 {[%emt 0:17:03]} O-O {[%emt 0:14:06]} 12. Nxe6 {[%emt 0:04:34]} Qxe6 {[%emt 0:01:06]} 13. Qxe6 {[%emt 0:01:04]} fxe6 {[%emt 0:00:02]} 14. f3 {[%emt 0:00:32]} Ne5 {[%emt 0:18:17]} 15. Ke2 {[%emt 0:05:50]} Rad8 {[%emt 0:07:06]} 16. Rd1 {[%emt 0:14:17]} Rd5 {[%emt 0:03:31]} 17. Ba4 {[%emt 0:06:42]} Ng6 {[%emt 0:17:50]} 18. Rxd5 {[%emt 0:10:14]} exd5 {[%emt 0:00:24]} 19. Bc2 {[%emt 0:00:20]} Nh4 {[%emt 0:01:45]} 20. Kf1 {[%emt 0:05:10]} Nf5 {[%emt 0:03:24]} 21. Bd2 {[%emt 0:02:31]} Ne3+ {[%emt 0:02:49]} 22. Bxe3 {[%emt 0:00:08]} Bxe3 {[%emt 0:00:06]} 23. Re1 {[%emt 0:00:06]} 1/2-1/2

[Event "12th Arad Open 2019"]
[Site "Arad"]
[Date "2019.07.28"]
[Round "6.6"]
[White "David, Alexandru-Vasile"]
[Black "Florescu, Codrut-Constantin"]
[Result "1-0"]
[ECO "E12"]
[WhiteElo "2428"]
[BlackElo "2312"]
[Annotator "NA"]
[PlyCount "117"]
[EventDate "2019.07.24"]
[EventType "swiss"]
[EventCountry "ROU"]
[SourceTitle "playchess.com"]
[Source "ChessBase"]
[SourceQuality "1"]
[TimeControl "40/5400+30:900+30"]

1. d4 {[%emt 0:00:00]} Nf6 {[%emt 0:00:00]} 2. c4 {[%emt 0:00:00]} e6 {[%emt 0:00:10]} 3. Nf3 {[%emt 0:02:49]} b6 {[%emt 0:00:18]} 4. a3 {[%emt 0:06:43]} Bb7 {[%emt 0:00:49]} 5. Nc3 {[%emt 0:02:34]} Ne4 {[%emt 0:00:36]} 6. Nxe4 {[%emt 0:00:19]} Bxe4 {[%emt 0:00:04]} 7. Nd2 {[%emt 0:00:16]} Bb7 {[%emt 0:00:04]} 8. e4 {[%emt 0:00:07]} Qf6 {[%emt 0:00:18]} 9. d5 {[%emt 0:05:42]} Bc5 {[%emt 0:19:55]} 10. Nf3 {[%emt 0:08:47]} Qg6 {[%emt 0:00:43]} 11. b4 {[%emt 0:00:41]} Qxe4+ {[%emt 0:02:11]} 12. Be2 {[%emt 0:00:04]} Bd6 {[%emt 0:05:11]} 13. O-O {[%emt 0:01:05]} Qg6 {[%emt 0:00:42]} 14. Bb2 {[%emt 0:38:16]} O-O {[%emt 0:04:22]} 15. Bd3 {[%emt 0:08:03]} Qh5 {[%emt 0:02:30]} 16. Re1 {[%emt 0:09:24]} a5 {[%emt 0:12:02]} 17. c5 {[%emt 0:02:06]} bxc5 {[%emt 0:00:33]} 18. bxc5 {[%emt 0:00:04]} Bxh2+ {[%emt 0:00:16]} 19. Nxh2 {[%emt 0:00:10]} Qxd1 {[%emt 0:00:07]} 20. Raxd1 {[%emt 0:00:03]} Bxd5 {[%emt 0:00:30]} 21. Ng4 {[%emt 0:00:30]} Nc6 {[%emt 0:00:01]} 22. Bc2 {[%emt 0:04:55]} Rfb8 {[%emt 0:04:58]} 23. Ba1 {[%emt 0:00:19]} Rb5 {[%emt 0:03:33]} 24. Ne3 {[%emt 0:02:24]} Rxc5 {[%emt 0:00:55]} 25. Rc1 {[%emt 0:01:02]} Kf8 {[%emt 0:06:35]} 26. Nxd5 {[%emt 0:00:25]} exd5 {[%emt 0:00:43]} 27. Bf5 {[%emt 0:01:20]} Rxc1 {[%emt 0:01:37]} 28. Rxc1 {[%emt 0:00:00]} Ke7 {[%emt 0:02:40]} 29. Bxg7 {[%emt 0:00:04]} h5 {[%emt 0:03:50]} 30. Rd1 {[%emt 0:00:37]} Kd6 {[%emt 0:00:31]} 31. Bh6 {[%emt 0:00:33]} Ne5 {[%emt 0:00:19]} 32. Bf4 {[%emt 0:01:35]} f6 {[%emt 0:00:19]} 33. Kf1 {[%emt 0:01:03]} Rb8 {[%emt 0:00:44]} 34. Rb1 {[%emt 0:00:00]} Rxb1+ {[%emt 0:00:45]} 35. Bxb1 {[%emt 0:00:02]} c5 {[%emt 0:01:09]} 36. g3 {[%emt 0:00:48]} Ke6 {[%emt 0:01:01]} 37. Ke2 {[%emt 0:00:32]} Nc4 {[%emt 0:02:37]} 38. Bc1 {[%emt 0:00:31]} f5 {[%emt 0:00:38]} 39. Bd3 {[%emt 0:01:57]} Nd6 {[%emt 0:00:58]} 40. a4 {[%emt 0:00:00]} c4 {[%emt 0:00:00]} 41. Bb1 {[%emt 0:05:41]} d4 {[%emt 0:01:55]} 42. Bd2 {[%emt 0:00:34]} Nb7 {[%emt 0:00:22]} 43. Ke1 {[%emt 0:06:39]} c3 {[%emt 0:01:03]} 44. Bh6 {[%emt 0:01:10]} Kf6 {[%emt 0:09:18]} 45. Bf8 {[%emt 0:02:35]} d6 {[%emt 0:00:05]} 46. Ke2 {[%emt 0:00:18]} f4 {[%emt 0:07:52]} 47. Kd3 {[%emt 0:03:09]} Nc5+ {[%emt 0:01:22]} 48. Kc4 {[%emt 0:00:04]} fxg3 {[%emt 0:02:02]} 49. fxg3 {[%emt 0:00:04]} Nxa4 {[%emt 0:03:04]} 50. Bxd6 {[%emt 0:00:05]} Nb6+ {[%emt 0:01:23]} 51. Kxd4 {[%emt 0:00:04]} a4 {[%emt 0:00:26]} 52. Bc2 {[%emt 0:01:00]} Ke6 {[%emt 0:02:16]} 53. Ba3 {[%emt 0:01:12]} Nd7 {[%emt 0:01:44]} 54. Bxa4 {[%emt 0:00:47]} Ne5 {[%emt 0:02:29]} 55. Ke4 {[%emt 0:00:03]} Ng6 {[%emt 0:00:50]} 56. Be8 {[%emt 0:03:12]} Kf6 {[%emt 0:01:34]} 57. Bxg6 {[%emt 0:00:25]} Kxg6 {[%emt 0:00:04]} 58. Kd3 {[%emt 0:00:03]} Kf5 {[%emt 0:01:32]} 59. Be7 {[%emt 0:00:04] Ke4+ Kxe4} 1-0

[Event "12th Arad Open 2019"]
[Site "Arad"]
[Date "2019.07.28"]
[Round "6.7"]
[White "Petrisor, Adrian-Marian"]
[Black "Visanescu, Daria-Ioana"]
[Result "0-1"]
[ECO "B94"]
[WhiteElo "2422"]
[BlackElo "2079"]
[Annotator "NA"]
[PlyCount "60"]
[EventDate "2019.07.24"]
[EventType "swiss"]
[EventCountry "ROU"]
[SourceTitle "playchess.com"]
[Source "ChessBase"]
[SourceQuality "1"]
[TimeControl "40/5400+30:900+30"]

1. e4 {[%emt 0:00:00]} c5 {[%emt 0:00:00]} 2. Nf3 {[%emt 0:00:00]} d6 {[%emt 0:00:00]} 3. d4 {[%emt 0:00:00]} cxd4 {[%emt 0:00:02]} 4. Nxd4 {[%emt 0:00:01]} Nf6 {[%emt 0:00:02]} 5. Nc3 {[%emt 0:00:06]} a6 {[%emt 0:00:16]} 6. Bg5 {[%emt 0:00:21]} Nbd7 {[%emt 0:00:18]} 7. f4 {[%emt 0:03:36]} Qc7 {[%emt 0:02:33]} 8. Qe2 {[%emt 0:00:11]} e6 {[%emt 0:03:43]} 9. O-O-O {[%emt 0:00:47]} b5 {[%emt 0:00:22]} 10. g4 {[%emt 0:04:27]} b4 {[%emt 0:12:16]} 11. Nd5 {[%emt 0:00:29]} exd5 {[%emt 0:01:38]} 12. exd5+ {[%emt 0:00:06]} Be7 {[%emt 0:00:03]} 13. Nc6 {[%emt 0:06:46]} O-O {[%emt 0:04:34]} 14. Nxe7+ {[%emt 0:02:03]} Kh8 {[%emt 0:00:04]} 15. Qg2 {[%emt 0:19:22]} a5 {[%emt 0:10:15]} 16. Nxc8 {[%emt 0:20:59]} Rfxc8 {[%emt 0:01:08]} 17. Bd3 {[%emt 0:00:13]} b3 {[%emt 0:07:04]} 18. Bxf6 {[%emt 0:17:54]} bxa2 {[%emt 0:09:46]} 19. Bxg7+ {[%emt 0:00:13]} Kxg7 {[%emt 0:00:04]} 20. Kd2 {[%emt 0:00:07]} Qb6 {[%emt 0:01:59]} 21. g5 {[%emt 0:10:05]} Nc5 {[%emt 0:23:01]} 22. Bf5 {[%emt 0:04:05]} Re8 {[%emt 0:00:57]} 23. Qh3 {[%emt 0:00:05]} Ne4+ {[%emt 0:03:08]} 24. Bxe4 {[%emt 0:00:05]} Rxe4 {[%emt 0:01:27]} 25. Qc3+ {[%emt 0:01:44]} Kg8 {[%emt 0:00:17]} 26. b3 {[%emt 0:00:12]} a4 {[%emt 0:01:27]} 27. Rhf1 {[%emt 0:07:05]} axb3 {[%emt 0:01:16]} 28. cxb3 {[%emt 0:00:04]} Rd4+ {[%emt 0:01:56]} 29. Kc2 {[%emt 0:00:06]} Rxd1 {[%emt 0:00:39]} 30. Rxd1 {[%emt 0:00:03]} Qf2+ {[%emt 0:00:17]} 0-1

[Event "12th Arad Open 2019"]
[Site "Arad"]
[Date "2019.07.28"]
[Round "6.8"]
[White "Marjanovic, Annamaria"]
[Black "Zawadzka, Jolanta"]
[Result "1/2-1/2"]
[ECO "A14"]
[WhiteElo "2343"]
[BlackElo "2422"]
[Annotator "NA"]
[PlyCount "61"]
[EventDate "2019.07.24"]
[EventType "swiss"]
[EventCountry "ROU"]
[SourceTitle "playchess.com"]
[Source "ChessBase"]
[SourceQuality "1"]
[TimeControl "40/5400+30:900+30"]

1. c4 {[%emt 0:00:00]} e6 {[%emt 0:00:00]} 2. g3 {[%emt 0:00:00]} d5 {[%emt 0:00:00]} 3. Bg2 {[%emt 0:00:00]} Nf6 {[%emt 0:00:02]} 4. Nf3 {[%emt 0:00:02]} Be7 {[%emt 0:00:22]} 5. O-O {[%emt 0:00:21]} O-O {[%emt 0:00:18]} 6. b3 {[%emt 0:00:13]} d4 {[%emt 0:00:56]} 7. e3 {[%emt 0:00:40]} c5 {[%emt 0:00:13]} 8. Ne5 {[%emt 0:02:29]} Nfd7 {[%emt 0:03:43]} 9. exd4 {[%emt 0:02:19]} cxd4 {[%emt 0:07:28]} 10. f4 {[%emt 0:05:31]} Nxe5 {[%emt 0:03:20]} 11. fxe5 {[%emt 0:00:10]} Nc6 {[%emt 0:01:04]} 12. Re1 {[%emt 0:05:43]} d3 {[%emt 0:07:10]} 13. Kh1 {[%emt 0:20:58]} Bc5 {[%emt 0:12:38]} 14. Ba3 {[%emt 0:06:29]} Qe7 {[%emt 0:01:03]} 15. Bxc5 {[%emt 0:10:05]} Qxc5 {[%emt 0:00:07]} 16. Nc3 {[%emt 0:02:06]} Nxe5 {[%emt 0:03:24]} 17. b4 {[%emt 0:01:57]} Qc7 {[%emt 0:03:04]} 18. Nb5 {[%emt 0:03:06]} Qb8 {[%emt 0:00:05]} 19. c5 {[%emt 0:00:33]} f6 {[%emt 0:07:23]} 20. Qb3 {[%emt 0:05:41]} a6 {[%emt 0:13:01]} 21. Nd6 {[%emt 0:04:46]} Qc7 {[%emt 0:00:36]} 22. Nc4 {[%emt 0:03:52]} Nxc4 {[%emt 0:03:59]} 23. Qxc4 {[%emt 0:00:04]} Bd7 {[%emt 0:09:21]} 24. Qxd3 {[%emt 0:00:54]} Rae8 {[%emt 0:00:09]} 25. Qb3 {[%emt 0:01:12]} Kh8 {[%emt 0:05:46]} 26. d4 {[%emt 0:00:45]} Qc8 {[%emt 0:01:16]} 27. Re2 {[%emt 0:07:42]} e5 {[%emt 0:02:12]} 28. dxe5 {[%emt 0:01:38]} fxe5 {[%emt 0:00:40]} 29. Rae1 {[%emt 0:00:45]} Bc6 {[%emt 0:00:24]} 30. Qe3 {[%emt 0:01:52]} e4 {[%emt 0:04:41]} 31. Qd4 {[%emt 0:02:49]} 1/2-1/2

[Event "12th Arad Open 2019"]
[Site "Arad"]
[Date "2019.07.28"]
[Round "6.10"]
[White "Banzea, Alexandru-Bogdan"]
[Black "Albu, George"]
[Result "1-0"]
[ECO "B40"]
[WhiteElo "2405"]
[BlackElo "2014"]
[Annotator "NA"]
[PlyCount "79"]
[EventDate "2019.07.24"]
[EventType "swiss"]
[EventCountry "ROU"]
[SourceTitle "playchess.com"]
[Source "ChessBase"]
[SourceQuality "1"]
[TimeControl "40/5400+30:900+30"]

1. e4 {[%emt 0:00:00]} c5 {[%emt 0:05:27]} 2. Nf3 {[%emt 0:00:00]} e6 {[%emt 0:00:06]} 3. d4 {[%emt 0:00:00]} cxd4 {[%emt 0:00:04]} 4. Nxd4 {[%emt 0:00:00]} Nf6 {[%emt 0:00:04]} 5. Nc3 {[%emt 0:00:01]} Nc6 {[%emt 0:00:05]} 6. g3 {[%emt 0:01:25]} Qc7 {[%emt 0:04:58]} 7. Bg2 {[%emt 0:00:30]} d6 {[%emt 0:00:10]} 8. O-O {[%emt 0:00:46]} Bd7 {[%emt 0:00:12]} 9. Ncb5 {[%emt 0:03:16]} Qb8 {[%emt 0:00:39]} 10. c4 {[%emt 0:00:06]} Be7 {[%emt 0:01:00]} 11. Nc3 {[%emt 0:01:12]} O-O {[%emt 0:01:21]} 12. b3 {[%emt 0:00:40]} a6 {[%emt 0:00:46]} 13. a4 {[%emt 0:00:48]} a5 {[%emt 0:09:50]} 14. Ndb5 {[%emt 0:00:47]} Rd8 {[%emt 0:07:24]} 15. Be3 {[%emt 0:03:11]} Nb4 {[%emt 0:04:17]} 16. Qe2 {[%emt 0:03:07]} Bc6 {[%emt 0:00:23]} 17. Rad1 {[%emt 0:01:02]} b6 {[%emt 0:10:11]} 18. Bf4 {[%emt 0:04:02]} h6 {[%emt 0:16:52]} 19. Rd2 {[%emt 0:01:18]} e5 {[%emt 0:00:54]} 20. Be3 {[%emt 0:00:12]} Nd7 {[%emt 0:00:06]} 21. h4 {[%emt 0:22:56]} Nc5 {[%emt 0:03:30]} 22. Qd1 {[%emt 0:00:16]} Qb7 {[%emt 0:05:53]} 23. f3 {[%emt 0:00:11]} f5 {[%emt 0:07:10]} 24. exf5 {[%emt 0:02:50]} d5 {[%emt 0:00:10]} 25. cxd5 {[%emt 0:00:46]} Nxd5 {[%emt 0:00:24]} 26. Bf2 {[%emt 0:03:50]} Kh8 {[%emt 0:01:56]} 27. Nxd5 {[%emt 0:14:41]} Bxd5 {[%emt 0:00:11]} 28. Bxc5 {[%emt 0:00:14]} Bxc5+ {[%emt 0:00:47]} 29. Kh2 {[%emt 0:00:07]} Be7 {[%emt 0:07:03]} 30. Rff2 {[%emt 0:07:57]} Rac8 {[%emt 0:07:43]} 31. Rd3 {[%emt 0:04:50]} Bc6 {[%emt 0:02:31]} 32. Nd6 {[%emt 0:00:45]} Bxd6 {[%emt 0:00:04]} 33. Rxd6 {[%emt 0:00:06]} Rd7 {[%emt 0:01:26]} 34. Rxd7 {[%emt 0:01:35]} Qxd7 {[%emt 0:00:12]} 35. Rd2 {[%emt 0:00:15]} Qe7 {[%emt 0:01:36]} 36. Rd6 {[%emt 0:00:35]} b5 {[%emt 0:01:00]} 37. Qd2 {[%emt 0:01:25]} bxa4 {[%emt 0:00:34]} 38. f6 {[%emt 0:01:02]} gxf6 {[%emt 0:00:32]} 39. Bh3 {[%emt 0:01:43]} Rf8 {[%emt 0:01:26]} 40. Qxh6+ {[%emt 0:00:00]} 1-0

[Event "12th Arad Open 2019"]
[Site "Arad"]
[Date "2019.07.28"]
[Round "6.12"]
[White "Stoleriu, George"]
[Black "Nedelcu, Teodor-Cosmin"]
[Result "1-0"]
[ECO "B45"]
[WhiteElo "2360"]
[BlackElo "1963"]
[Annotator "NA"]
[PlyCount "95"]
[EventDate "2019.07.24"]
[EventType "swiss"]
[EventCountry "ROU"]
[SourceTitle "playchess.com"]
[Source "ChessBase"]
[SourceQuality "1"]
[TimeControl "40/5400+30:900+30"]

1. e4 {[%emt 0:00:00]} c5 {[%emt 0:00:00]} 2. Nc3 {[%emt 0:00:40]} e6 {[%emt 0:00:00]} 3. Nf3 {[%emt 0:00:53]} Nc6 {[%emt 0:00:11]} 4. d4 {[%emt 0:01:37]} cxd4 {[%emt 0:00:08]} 5. Nxd4 {[%emt 0:00:03]} Nf6 {[%emt 0:00:09]} 6. Nxc6 {[%emt 0:01:07]} bxc6 {[%emt 0:00:01]} 7. e5 {[%emt 0:01:41]} Nd5 {[%emt 0:00:01]} 8. Ne4 {[%emt 0:00:14]} Qa5+ {[%emt 0:07:34]} 9. Bd2 Qb6 {[%emt 0:01:31]} 10. c4 {[%emt 0:51:08]} Qxb2 {[%emt 0:03:41]} 11. cxd5 {[%emt 0:00:03]} Qxe5 {[%emt 0:00:19]} 12. Bd3 {[%emt 0:00:05]} cxd5 {[%emt 0:00:30]} 13. f4 {[%emt 0:11:58]} Qd4 {[%emt 0:00:33]} 14. Nf2 {[%emt 0:00:12]} Bc5 {[%emt 0:00:33]} 15. Rf1 {[%emt 0:00:04]} O-O {[%emt 0:00:52]} 16. Rc1 {[%emt 0:03:16]} e5 {[%emt 0:02:08]} 17. Qh5 {[%emt 0:04:09]} h6 {[%emt 0:17:58]} 18. Qxe5 {[%emt 0:06:40]} Qxe5+ {[%emt 0:00:30]} 19. fxe5 {[%emt 0:00:04]} Bd4 {[%emt 0:00:17]} 20. Bc3 {[%emt 0:00:53]} Bxe5 {[%emt 0:01:19]} 21. Bxe5 {[%emt 0:00:05]} Re8 {[%emt 0:00:03]} 22. Kd2 {[%emt 0:00:50]} Rxe5 {[%emt 0:00:01]} 23. Rfe1 {[%emt 0:05:28]} Rxe1 {[%emt 0:00:46]} 24. Rxe1 {[%emt 0:00:04]} Bb7 {[%emt 0:00:09]} 25. Ng4 {[%emt 0:00:11]} Bc6 {[%emt 0:00:51]} 26. Ne3 {[%emt 0:01:00]} d4 {[%emt 0:00:41]} 27. Nf5 {[%emt 0:00:08]} Rb8 {[%emt 0:03:07]} 28. Ne7+ {[%emt 0:05:50]} Kf8 {[%emt 0:00:06]} 29. Nxc6 {[%emt 0:00:10]} dxc6 {[%emt 0:00:01]} 30. Kc2 {[%emt 0:00:31]} Rb4 {[%emt 0:00:29]} 31. Re5 {[%emt 0:00:36]} Rb6 {[%emt 0:00:22]} 32. Re4 {[%emt 0:02:04]} c5 {[%emt 0:00:40]} 33. Re5 {[%emt 0:00:04]} Rc6 {[%emt 0:00:13]} 34. Bb5 {[%emt 0:00:15]} Rc8 {[%emt 0:00:02]} 35. Kd3 {[%emt 0:00:23]} f6 {[%emt 0:00:42]} 36. Rd5 {[%emt 0:00:12]} a6 {[%emt 0:05:12]} 37. Bxa6 {[%emt 0:00:14]} Ra8 {[%emt 0:00:09]} 38. Bc4 {[%emt 0:00:32]} Ra5 {[%emt 0:00:40]} 39. Rd7 {[%emt 0:00:24]} f5 {[%emt 0:02:05]} 40. Rf7+ {[%emt 0:00:00]} Ke8 {[%emt 0:00:00]} 41. Rxg7 {[%emt 0:00:20]} f4 {[%emt 0:00:20]} 42. Rg6 {[%emt 0:00:23]} h5 {[%emt 0:00:13]} 43. Ra6 {[%emt 0:00:12]} Rxa6 {[%emt 0:00:01]} 44. Bxa6 {[%emt 0:00:05]} Ke7 {[%emt 0:00:08]} 45. Ke4 {[%emt 0:00:05]} Kd6 {[%emt 0:00:06]} 46. Bc4 {[%emt 0:00:03]} Kc6 {[%emt 0:00:16]} 47. Kxf4 {[%emt 0:00:10]} Kb6 {[%emt 0:00:02]} 48. Ke4 {[%emt 0:00:21]} 1-0

[Event "12th Arad Open 2019"]
[Site "Arad"]
[Date "2019.07.28"]
[Round "6.13"]
[White "Patrascu, Catalin-Lucian"]
[Black "Svetushkin, Dmitry"]
[Result "0-1"]
[ECO "A13"]
[WhiteElo "2292"]
[BlackElo "2528"]
[Annotator "ChessBase"]
[PlyCount "38"]
[EventDate "2019.07.24"]
[EventType "swiss"]
[EventCountry "ROU"]
[SourceTitle "playchess.com"]
[Source "ChessBase"]
[SourceQuality "1"]
[TimeControl "40/5400+30:900+30"]

1. c4 {[%emt 0:00:00]} e6 {[%emt 0:00:19]} 2. Nc3 {[%emt 0:00:00]} Bb4 {[%emt 0:00:07]} 3. g3 {[%emt 0:08:29]} Nf6 {[%emt 0:05:26]} 4. Bg2 {[%emt 0:00:36]} d5 {[%emt 0:01:56]} 5. d4 {[%emt 0:10:33]} O-O {[%emt 0:00:33]} 6. Nf3 {[%emt 0:09:07]} dxc4 {[%emt 0:01:07]} 7. Bg5 {[%emt 0:02:35]} Nc6 {[%emt 0:00:55]} 8. a3 {[%emt 0:07:14]} Be7 {[%emt 0:01:20]} 9. e4 {[%emt 0:03:04]} a6 {[%emt 0:01:33]} 10. e5 {[%emt 0:08:28]} Nd5 {[%emt 0:01:02]} 11. h4 {[%emt 0:01:22]} Bd7 {[%emt 0:16:23]} 12. Qc2 {[%emt 0:07:30]} Nxc3 {[%emt 0:02:55]} 13. bxc3 {[%emt 0:05:35]} h6 {[%emt 0:01:20]} 14. Bf4 {[%emt 0:07:47]} Na5 {[%emt 0:01:46]} 15. Qe4 {[%emt 0:05:56]} Bc6 {[%emt 0:02:49]} 16. Qe3 {[%emt 0:00:08]} Qd5 {[%emt 0:00:29]} 17. Bxh6 {[%emt 0:10:42]} gxh6 {[%emt 0:00:55]} 18. Qxh6 {[%emt 0:00:07]} Qe4+ {[%emt 0:00:08]} 19. Kf1 {[%emt 0:00:05]} Qd3+ {[%emt 0:00:16]} 0-1